[Event "Titled Tuesday Blitz April 18 Early 2023"]
[White "Koutlas, Nikolaos"]
[Black "Hoffmann, Asa"]
[WhiteFideId "25827138"]
[BlackFideId "2001470"]
[WhiteElo "2215"]
[BlackElo "2117"]
[Result "1/2-1/2"]
[Round "06"]
[TimeControl "180+2"]
[Date "2023.04.18"]
[WhiteClock "0:00:52"]
[BlackClock "0:00:16"]

1. e4 {[%clk 0:03:00]}  d6 {[%clk 0:02:58]} 2. f3 {[%clk 0:02:57]}  c5 {[%clk 0:02:54]} 3. Nc3 {[%clk 0:02:54]}  Nc6 {[%clk 0:02:54]} 4. Bc4 {[%clk 0:02:54]}  Nf6 {[%clk 0:02:50]} 5. d3 {[%clk 0:02:52]}  e6 {[%clk 0:02:50]} 6. Be3 {[%clk 0:02:51]}  d5 {[%clk 0:02:49]} 7. exd5 {[%clk 0:02:51]}  exd5 {[%clk 0:02:49]} 8. Bb5 {[%clk 0:02:51]}  d4 {[%clk 0:02:50]} 9. Qe2 {[%clk 0:02:51]}  Be7 {[%clk 0:02:48]} 10. O-O-O {[%clk 0:02:46]}  dxe3 {[%clk 0:02:42]} 11. h4 {[%clk 0:02:44]}  O-O {[%clk 0:02:40]} 12. Qxe3 {[%clk 0:02:44]}  Nd4 {[%clk 0:02:39]} 13. Bc4 {[%clk 0:02:44]}  a6 {[%clk 0:02:38]} 14. Ne4 {[%clk 0:02:38]}  Nxe4 {[%clk 0:02:36]} 15. dxe4 {[%clk 0:02:37]}  b5 {[%clk 0:02:35]} 16. Bd5 {[%clk 0:02:35]}  Ra7 {[%clk 0:02:34]} 17. c3 {[%clk 0:02:36]}  Qb6 {[%clk 0:02:20]} 18. cxd4 {[%clk 0:02:34]}  cxd4 {[%clk 0:02:20]} 19. Qxd4 {[%clk 0:02:33]}  Bc5 {[%clk 0:02:19]} 20. Qd3 {[%clk 0:02:26]}  Be6 {[%clk 0:02:17]} 21. Kb1 {[%clk 0:02:23]}  Rd8 {[%clk 0:02:15]} 22. Ne2 {[%clk 0:02:21]}  Rad7 {[%clk 0:02:13]} 23. Nf4 {[%clk 0:02:20]}  Qd6 {[%clk 0:02:01]} 24. Bxe6 {[%clk 0:02:14]}  Qxd3+ {[%clk 0:01:50]} 25. Nxd3 {[%clk 0:02:10]}  fxe6 {[%clk 0:01:47]} 26. Kc2 {[%clk 0:02:04]}  Bd4 {[%clk 0:01:42]} 27. Kb3 {[%clk 0:02:00]}  e5 {[%clk 0:01:42]} 28. Rc1 {[%clk 0:01:53]}  a5 {[%clk 0:01:39]} 29. a3 {[%clk 0:01:44]}  h6 {[%clk 0:01:33]} 30. Nc5 {[%clk 0:01:42]}  Bxc5 {[%clk 0:01:32]} 31. Rxc5 {[%clk 0:01:42]}  Rd3+ {[%clk 0:01:22]} 32. Ka2 {[%clk 0:01:41]}  b4 {[%clk 0:01:22]} 33. a4 {[%clk 0:01:34]}  Rd2 {[%clk 0:01:17]} 34. Rxa5 {[%clk 0:01:31]}  R8d3 {[%clk 0:01:11]} 35. Rxe5 {[%clk 0:01:14]}  Ra3+ {[%clk 0:01:10]} 36. Kb1 {[%clk 0:01:15]}  Rb3 {[%clk 0:01:10]} 37. Rb5 {[%clk 0:01:01]}  Rbxb2+ {[%clk 0:01:07]} 38. Ka1 {[%clk 0:01:02]}  b3 {[%clk 0:01:04]} 39. a5 {[%clk 0:00:59]}  Ra2+ {[%clk 0:00:58]} 40. Kb1 {[%clk 0:00:59]}  Rdb2+ {[%clk 0:00:57]} 41. Kc1 {[%clk 0:01:00]}  Rc2+ {[%clk 0:00:27]} 42. Kb1 {[%clk 0:00:51]}  Rab2+ {[%clk 0:00:24]} 43. Ka1 {[%clk 0:00:52]}  Ra2+ {[%clk 0:00:18]} 44. Kb1 {[%clk 0:00:52]}  Rab2+ {[%clk 0:00:16]} 45. Ka1 {[%clk 0:00:52]}  Ra2+ {[%clk 0:00:16]} 46. Kb1 {[%clk 0:00:52]} 1/2-1/2


[Site "https://www.chess.com"]

[Event "Titled Tuesday Blitz April 18 Early 2023"]
[White "Grot, Blazej"]
[Black "Buscar, Michael"]
[WhiteFideId "21835845"]
[BlackFideId "2603616"]
[WhiteElo "1823"]
[BlackElo "2010"]
[Result "1-0"]
[Round "06"]
[TimeControl "180+2"]
[Date "2023.04.18"]
[WhiteClock "0:01:06"]
[BlackClock "0:00:54"]

1. e4 {[%clk 0:03:00]}  c5 {[%clk 0:02:58]} 2. Nf3 {[%clk 0:02:59]}  Nc6 {[%clk 0:02:54]} 3. d4 {[%clk 0:02:55]}  cxd4 {[%clk 0:02:55]} 4. Nxd4 {[%clk 0:02:55]}  Nf6 {[%clk 0:02:56]} 5. Nc3 {[%clk 0:02:53]}  e5 {[%clk 0:02:56]} 6. Ndb5 {[%clk 0:02:49]}  h6 {[%clk 0:02:56]} 7. Nd6+ {[%clk 0:02:44]}  Bxd6 {[%clk 0:02:56]} 8. Qxd6 {[%clk 0:02:45]}  Qe7 {[%clk 0:02:57]} 9. Qxe7+ {[%clk 0:02:39]}  Kxe7 {[%clk 0:02:58]} 10. Bc4 {[%clk 0:02:38]}  Rd8 {[%clk 0:02:58]} 11. Be3 {[%clk 0:02:31]}  d6 {[%clk 0:02:47]} 12. O-O-O {[%clk 0:02:28]}  Be6 {[%clk 0:02:47]} 13. Be2 {[%clk 0:02:22]}  d5 {[%clk 0:02:32]} 14. Bc5+ {[%clk 0:02:18]}  Ke8 {[%clk 0:02:32]} 15. exd5 {[%clk 0:02:14]}  Nxd5 {[%clk 0:02:32]} 16. Nb5 {[%clk 0:02:10]}  b6 {[%clk 0:02:03]} 17. c4 {[%clk 0:02:03]}  bxc5 {[%clk 0:01:08]} 18. cxd5 {[%clk 0:02:00]}  Nd4 {[%clk 0:01:08]} 19. Nxd4 {[%clk 0:01:55]}  cxd4 {[%clk 0:01:08]} 20. dxe6 {[%clk 0:01:56]}  fxe6 {[%clk 0:01:07]} 21. Bf3 {[%clk 0:01:45]}  Rac8+ {[%clk 0:01:06]} 22. Kb1 {[%clk 0:01:45]}  Rc5 {[%clk 0:01:06]} 23. Be4 {[%clk 0:01:39]}  Ke7 {[%clk 0:01:02]} 24. Rc1 {[%clk 0:01:39]}  Rdc8 {[%clk 0:01:01]} 25. Rxc5 {[%clk 0:01:34]}  Rxc5 {[%clk 0:01:01]} 26. Rc1 {[%clk 0:01:35]}  Ra5 {[%clk 0:00:59]} 27. Rc7+ {[%clk 0:01:27]}  Kf6 {[%clk 0:00:57]} 28. b4 {[%clk 0:01:22]}  Ra3 {[%clk 0:00:55]} 29. Kb2 {[%clk 0:01:17]}  Ra6 {[%clk 0:00:54]} 30. Rc6 {[%clk 0:01:06]} 1-0


[Site "https://www.chess.com"]

[Event "Titled Tuesday Blitz April 18 Early 2023"]
[White "Pavlidou, Ekaterini"]
[Black "Shuvalov, Evgenij"]
[WhiteFideId "4213262"]
[BlackFideId "4187237"]
[WhiteElo "2126"]
[BlackElo "2080"]
[Result "1-0"]
[Round "06"]
[TimeControl "180+2"]
[Date "2023.04.18"]
[WhiteClock "0:00:44"]
[BlackClock "0:00:16"]

1. d4 {[%clk 0:03:00]}  Nf6 {[%clk 0:02:55]} 2. c4 {[%clk 0:03:01]}  g6 {[%clk 0:02:54]} 3. Nc3 {[%clk 0:02:58]}  d5 {[%clk 0:02:54]} 4. Nf3 {[%clk 0:02:57]}  Bg7 {[%clk 0:02:54]} 5. Bg5 {[%clk 0:02:56]}  Ne4 {[%clk 0:02:53]} 6. h4 {[%clk 0:02:55]}  h6 {[%clk 0:02:42]} 7. Bf4 {[%clk 0:02:54]}  O-O {[%clk 0:02:36]} 8. e3 {[%clk 0:02:54]}  c5 {[%clk 0:02:36]} 9. cxd5 {[%clk 0:02:52]}  Nxc3 {[%clk 0:02:31]} 10. bxc3 {[%clk 0:02:52]}  Qxd5 {[%clk 0:02:31]} 11. c4 {[%clk 0:02:50]}  Qd8 {[%clk 0:02:26]} 12. Be2 {[%clk 0:02:41]}  Bg4 {[%clk 0:02:23]} 13. Rb1 {[%clk 0:02:33]}  Nc6 {[%clk 0:02:19]} 14. d5 {[%clk 0:02:29]}  Na5 {[%clk 0:02:15]} 15. Qc2 {[%clk 0:02:24]}  e6 {[%clk 0:02:11]} 16. Rd1 {[%clk 0:02:20]}  exd5 {[%clk 0:02:10]} 17. Rxd5 {[%clk 0:02:20]}  Qc8 {[%clk 0:02:04]} 18. h5 {[%clk 0:02:18]}  gxh5 {[%clk 0:01:58]} 19. Nd2 {[%clk 0:02:04]}  Nc6 {[%clk 0:01:44]} 20. f3 {[%clk 0:02:03]}  Nb4 {[%clk 0:01:43]} 21. Qb1 {[%clk 0:01:57]}  Nxd5 {[%clk 0:01:42]} 22. cxd5 {[%clk 0:01:57]}  Bd7 {[%clk 0:01:38]} 23. Rxh5 {[%clk 0:01:56]}  Re8 {[%clk 0:01:16]} 24. Nc4 {[%clk 0:01:49]}  Qd8 {[%clk 0:01:14]} 25. Nd6 {[%clk 0:01:43]}  Rf8 {[%clk 0:01:08]} 26. Bxh6 {[%clk 0:01:37]}  Qf6 {[%clk 0:00:57]} 27. Ne4 {[%clk 0:01:28]}  Qg6 {[%clk 0:00:51]} 28. Bxg7 {[%clk 0:01:20]}  f5 {[%clk 0:00:30]} 29. Rg5 {[%clk 0:01:16]}  Kxg7 {[%clk 0:00:26]} 30. Rxg6+ {[%clk 0:01:15]}  Kxg6 {[%clk 0:00:27]} 31. Nxc5 {[%clk 0:01:12]}  Bc8 {[%clk 0:00:25]} 32. d6 {[%clk 0:01:11]}  Rd8 {[%clk 0:00:23]} 33. Qd3 {[%clk 0:00:56]}  b6 {[%clk 0:00:22]} 34. Nb3 {[%clk 0:00:54]}  Be6 {[%clk 0:00:20]} 35. g4 {[%clk 0:00:51]}  Kf6 {[%clk 0:00:18]} 36. Qd4+ {[%clk 0:00:50]}  Kf7 {[%clk 0:00:18]} 37. gxf5 {[%clk 0:00:46]}  Bxf5 {[%clk 0:00:19]} 38. Qf4 {[%clk 0:00:47]}  Kg6 {[%clk 0:00:17]} 39. Nd4 {[%clk 0:00:46]}  Bd7 {[%clk 0:00:17]} 40. Bd3+ {[%clk 0:00:46]}  Kg7 {[%clk 0:00:17]} 41. Qg5+ {[%clk 0:00:46]}  Kf7 {[%clk 0:00:17]} 42. Bc4+ {[%clk 0:00:45]}  Kf8 {[%clk 0:00:16]} 43. Qf6+ {[%clk 0:00:44]}  Ke8 {[%clk 0:00:16]} 44. Qf7# {[%clk 0:00:44]} 1-0


[Site "https://www.chess.com"]

[Event "Titled Tuesday Blitz April 18 Early 2023"]
[White "Rodriguez Santiago, Jaime"]
[Black "Chernov, Mikhail"]
[WhiteFideId "3100898"]
[BlackFideId "24143170"]
[WhiteElo "2025"]
[BlackElo "2113"]
[Result "0-1"]
[Round "06"]
[TimeControl "180+2"]
[Date "2023.04.18"]
[WhiteClock "0:00:21"]
[BlackClock "0:00:13"]

1. c4 {[%clk 0:03:00]}  c5 {[%clk 0:02:59]} 2. Nc3 {[%clk 0:02:59]}  Nc6 {[%clk 0:02:59]} 3. g3 {[%clk 0:02:59]}  g6 {[%clk 0:02:59]} 4. Bg2 {[%clk 0:03:00]}  Bg7 {[%clk 0:03:00]} 5. e4 {[%clk 0:03:00]}  e5 {[%clk 0:02:58]} 6. Nge2 {[%clk 0:03:00]}  Nge7 {[%clk 0:02:59]} 7. O-O {[%clk 0:03:00]}  O-O {[%clk 0:02:59]} 8. d3 {[%clk 0:03:00]}  d6 {[%clk 0:03:00]} 9. h3 {[%clk 0:03:00]}  a6 {[%clk 0:02:58]} 10. a4 {[%clk 0:02:57]}  Rb8 {[%clk 0:02:55]} 11. Rb1 {[%clk 0:02:55]}  Nd4 {[%clk 0:02:55]} 12. Nxd4 {[%clk 0:02:49]}  cxd4 {[%clk 0:02:56]} 13. Nd5 {[%clk 0:02:49]}  b5 {[%clk 0:02:53]} 14. axb5 {[%clk 0:02:45]}  axb5 {[%clk 0:02:54]} 15. b3 {[%clk 0:02:30]}  bxc4 {[%clk 0:02:53]} 16. dxc4 {[%clk 0:02:30]}  Nxd5 {[%clk 0:02:50]} 17. exd5 {[%clk 0:02:30]}  Qb6 {[%clk 0:02:21]} 18. Ba3 {[%clk 0:02:21]}  f5 {[%clk 0:02:10]} 19. b4 {[%clk 0:02:17]}  e4 {[%clk 0:01:49]} 20. c5 {[%clk 0:02:15]}  Qa6 {[%clk 0:01:37]} 21. Rb3 {[%clk 0:01:47]}  Qc4 {[%clk 0:01:30]} 22. cxd6 {[%clk 0:01:28]}  Qxd5 {[%clk 0:01:28]} 23. b5 {[%clk 0:01:25]}  Be6 {[%clk 0:01:15]} 24. Rb1 {[%clk 0:01:11]}  Rxb5 {[%clk 0:01:14]} 25. Qa4 {[%clk 0:01:07]}  Rxb1 {[%clk 0:01:05]} 26. Rxb1 {[%clk 0:01:08]}  d3 {[%clk 0:01:03]} 27. Bf1 {[%clk 0:01:07]}  Bd4 {[%clk 0:00:41]} 28. Rb5 {[%clk 0:00:51]}  Qc4 {[%clk 0:00:41]} 29. Rb4 {[%clk 0:00:45]}  Bxf2+ {[%clk 0:00:29]} 30. Kxf2 {[%clk 0:00:43]}  Qc5+ {[%clk 0:00:18]} 31. Kg2 {[%clk 0:00:43]}  e3 {[%clk 0:00:09]} 32. Bxd3 {[%clk 0:00:38]}  Qd5+ {[%clk 0:00:09]} 33. Kh2 {[%clk 0:00:24]}  Qxd3 {[%clk 0:00:09]} 34. Rb2 {[%clk 0:00:25]}  Bd5 {[%clk 0:00:06]} 35. d7 {[%clk 0:00:20]}  Qf1 {[%clk 0:00:05]} 36. g4 {[%clk 0:00:13]}  Qh1+ {[%clk 0:00:05]} 37. Kg3 {[%clk 0:00:13]}  Qf3+ {[%clk 0:00:04]} 38. Kh4 {[%clk 0:00:13]}  fxg4 {[%clk 0:00:03]} 39. Qxg4 {[%clk 0:00:12]}  Qxg4+ {[%clk 0:00:03]} 40. Kxg4 {[%clk 0:00:12]}  Be6+ {[%clk 0:00:03]} 41. Kg5 {[%clk 0:00:11]}  Rf5+ {[%clk 0:00:03]} 42. Kh6 {[%clk 0:00:12]}  Bxd7 {[%clk 0:00:03]} 43. Rb8+ {[%clk 0:00:12]}  Kf7 {[%clk 0:00:03]} 44. Rf8+ {[%clk 0:00:13]}  Ke6 {[%clk 0:00:03]} 45. Kxh7 {[%clk 0:00:12]}  Rxf8 {[%clk 0:00:03]} 46. Bxf8 {[%clk 0:00:13]}  Kf5 {[%clk 0:00:04]} 47. Bb4 {[%clk 0:00:12]}  e2 {[%clk 0:00:05]} 48. Kh6 {[%clk 0:00:12]}  Be8 {[%clk 0:00:05]} 49. h4 {[%clk 0:00:12]}  Kf4 {[%clk 0:00:05]} 50. Be1 {[%clk 0:00:11]}  Kf3 {[%clk 0:00:06]} 51. Kg5 {[%clk 0:00:11]}  Kg2 {[%clk 0:00:06]} 52. h5 {[%clk 0:00:11]}  gxh5 {[%clk 0:00:06]} 53. Kh4 {[%clk 0:00:11]}  Kf1 {[%clk 0:00:06]} 54. Bg3 {[%clk 0:00:11]}  e1=Q {[%clk 0:00:07]} 55. Bxe1 {[%clk 0:00:12]}  Kxe1 {[%clk 0:00:07]} 56. Kg3 {[%clk 0:00:13]}  Ke2 {[%clk 0:00:08]} 57. Kh2 {[%clk 0:00:14]}  Kf3 {[%clk 0:00:08]} 58. Kh3 {[%clk 0:00:14]}  Kf4 {[%clk 0:00:08]} 59. Kh4 {[%clk 0:00:15]}  Kf5 {[%clk 0:00:08]} 60. Kh3 {[%clk 0:00:16]}  Kg5 {[%clk 0:00:09]} 61. Kh2 {[%clk 0:00:17]}  h4 {[%clk 0:00:10]} 62. Kh3 {[%clk 0:00:17]}  Bd7+ {[%clk 0:00:09]} 63. Kh2 {[%clk 0:00:18]}  Kg4 {[%clk 0:00:10]} 64. Kh1 {[%clk 0:00:18]}  h3 {[%clk 0:00:11]} 65. Kh2 {[%clk 0:00:19]}  Kh4 {[%clk 0:00:11]} 66. Kh1 {[%clk 0:00:20]}  Kg3 {[%clk 0:00:12]} 67. Kg1 {[%clk 0:00:20]}  h2+ {[%clk 0:00:13]} 68. Kh1 {[%clk 0:00:21]}  Bc6# {[%clk 0:00:13]} 0-1


[Site "https://www.chess.com"]

[Event "Titled Tuesday Blitz April 18 Early 2023"]
[White "Skaric, Djuro"]
[Black "Bettalli, Francesco"]
[WhiteFideId "934569"]
[BlackFideId "2816453"]
[WhiteElo "2282"]
[BlackElo "2216"]
[Result "1-0"]
[Round "06"]
[TimeControl "180+2"]
[Date "2023.04.18"]
[WhiteClock "0:00:25"]
[BlackClock "0:01:18"]

1. g3 {[%clk 0:03:00]}  h5 {[%clk 0:02:57]} 2. Bg2 {[%clk 0:03:01]}  h4 {[%clk 0:02:58]} 3. gxh4 {[%clk 0:03:02]}  d5 {[%clk 0:02:58]} 4. d4 {[%clk 0:03:02]}  Nc6 {[%clk 0:02:58]} 5. Nf3 {[%clk 0:03:02]}  e6 {[%clk 0:02:58]} 6. c4 {[%clk 0:03:02]}  dxc4 {[%clk 0:02:58]} 7. Nc3 {[%clk 0:03:02]}  Rxh4 {[%clk 0:02:57]} 8. Nxh4 {[%clk 0:03:01]}  Qxh4 {[%clk 0:02:56]} 9. Be3 {[%clk 0:02:59]}  Nf6 {[%clk 0:02:53]} 10. Bf3 {[%clk 0:02:51]}  Bd7 {[%clk 0:02:50]} 11. Qc2 {[%clk 0:02:35]}  Nb4 {[%clk 0:02:45]} 12. Qd2 {[%clk 0:02:35]}  Nbd5 {[%clk 0:02:45]} 13. Nxd5 {[%clk 0:02:11]}  Nxd5 {[%clk 0:02:46]} 14. Bxd5 {[%clk 0:02:10]}  exd5 {[%clk 0:02:46]} 15. Bf4 {[%clk 0:02:09]}  a5 {[%clk 0:02:43]} 16. Bg3 {[%clk 0:02:09]}  Qf6 {[%clk 0:02:35]} 17. a3 {[%clk 0:02:02]}  Qb6 {[%clk 0:02:25]} 18. O-O {[%clk 0:02:01]}  O-O-O {[%clk 0:02:22]} 19. Qc3 {[%clk 0:01:53]}  g6 {[%clk 0:02:16]} 20. f3 {[%clk 0:01:38]}  Bg7 {[%clk 0:02:16]} 21. Bf2 {[%clk 0:01:37]}  Bh3 {[%clk 0:02:16]} 22. Rfc1 {[%clk 0:01:36]}  Qf6 {[%clk 0:02:16]} 23. f4 {[%clk 0:01:31]}  Bg4 {[%clk 0:02:11]} 24. b3 {[%clk 0:01:26]}  Bxe2 {[%clk 0:02:10]} 25. bxc4 {[%clk 0:01:21]}  dxc4 {[%clk 0:02:11]} 26. Qe3 {[%clk 0:01:14]}  Bd3 {[%clk 0:02:08]} 27. Rab1 {[%clk 0:01:04]}  Qc6 {[%clk 0:02:04]} 28. Qh3+ {[%clk 0:00:48]}  Bf5 {[%clk 0:01:59]} 29. Qh7 {[%clk 0:00:45]}  Bxd4 {[%clk 0:01:56]} 30. Bxd4 {[%clk 0:00:37]}  Rxd4 {[%clk 0:01:57]} 31. Qh8+ {[%clk 0:00:36]}  Rd8 {[%clk 0:01:56]} 32. Qc3 {[%clk 0:00:35]}  Qc5+ {[%clk 0:01:56]} 33. Kg2 {[%clk 0:00:34]}  Be4+ {[%clk 0:01:55]} 34. Kf1 {[%clk 0:00:31]}  Qh5 {[%clk 0:01:33]} 35. Rb2 {[%clk 0:00:30]}  Rd1+ {[%clk 0:01:29]} 36. Rxd1 {[%clk 0:00:29]}  Qxd1+ {[%clk 0:01:30]} 37. Kf2 {[%clk 0:00:29]}  Qh1 {[%clk 0:01:19]} 38. Kg3 {[%clk 0:00:28]}  Qg1+ {[%clk 0:01:17]} 39. Kh4 {[%clk 0:00:27]}  Qxh2+ {[%clk 0:01:18]} 40. Rxh2 {[%clk 0:00:25]} 1-0


[Site "https://www.chess.com"]

[Event "Titled Tuesday Blitz April 18 Early 2023"]
[White "Balint, Vilmos"]
[Black "Kovalevsky, Stanislav"]
[WhiteFideId "718050"]
[BlackFideId "13508598"]
[WhiteElo "2034"]
[BlackElo "2174"]
[Result "1-0"]
[Round "06"]
[TimeControl "180+2"]
[Date "2023.04.18"]
[WhiteClock "0:01:20"]
[BlackClock "0:00:31"]

1. e4 {[%clk 0:03:00]}  e6 {[%clk 0:03:00]} 2. d4 {[%clk 0:02:55]}  d5 {[%clk 0:03:00]} 3. Nc3 {[%clk 0:02:55]}  dxe4 {[%clk 0:03:00]} 4. Nxe4 {[%clk 0:02:55]}  Nf6 {[%clk 0:03:01]} 5. Nxf6+ {[%clk 0:02:55]}  gxf6 {[%clk 0:03:02]} 6. Nf3 {[%clk 0:02:56]}  Nc6 {[%clk 0:03:01]} 7. Bb5 {[%clk 0:02:56]}  Bd7 {[%clk 0:03:01]} 8. Bf4 {[%clk 0:02:55]}  Ne7 {[%clk 0:03:01]} 9. Qd3 {[%clk 0:02:53]}  Nd5 {[%clk 0:02:51]} 10. Bg3 {[%clk 0:02:51]}  Nb4 {[%clk 0:02:42]} 11. Bxd7+ {[%clk 0:02:49]}  Qxd7 {[%clk 0:02:42]} 12. Qb3 {[%clk 0:02:48]}  Qc6 {[%clk 0:02:36]} 13. O-O {[%clk 0:02:38]}  Bd6 {[%clk 0:02:10]} 14. c3 {[%clk 0:02:11]}  Bxg3 {[%clk 0:02:09]} 15. fxg3 {[%clk 0:01:56]}  Nd5 {[%clk 0:02:08]} 16. Rae1 {[%clk 0:01:55]}  O-O-O {[%clk 0:02:06]} 17. Nd2 {[%clk 0:01:55]}  f5 {[%clk 0:02:03]} 18. Nf3 {[%clk 0:01:54]}  Rhf8 {[%clk 0:01:53]} 19. Ne5 {[%clk 0:01:52]}  Qb6 {[%clk 0:01:50]} 20. Qxb6 {[%clk 0:01:47]}  axb6 {[%clk 0:01:49]} 21. g4 {[%clk 0:01:48]}  f6 {[%clk 0:01:40]} 22. Nd3 {[%clk 0:01:47]}  fxg4 {[%clk 0:01:39]} 23. Rxe6 {[%clk 0:01:46]}  Rde8 {[%clk 0:01:35]} 24. Rfe1 {[%clk 0:01:35]}  Kd7 {[%clk 0:01:29]} 25. Rxe8 {[%clk 0:01:27]}  Rxe8 {[%clk 0:01:30]} 26. Rxe8 {[%clk 0:01:27]}  Kxe8 {[%clk 0:01:31]} 27. Kf2 {[%clk 0:01:28]}  Kf7 {[%clk 0:01:27]} 28. c4 {[%clk 0:01:26]}  Ne7 {[%clk 0:01:24]} 29. Kg3 {[%clk 0:01:23]}  h5 {[%clk 0:01:19]} 30. Kh4 {[%clk 0:01:23]}  Kg6 {[%clk 0:00:52]} 31. Nf4+ {[%clk 0:01:23]}  Kh6 {[%clk 0:00:53]} 32. Nxh5 {[%clk 0:01:23]}  Ng6+ {[%clk 0:00:52]} 33. Kxg4 {[%clk 0:01:22]}  f5+ {[%clk 0:00:53]} 34. Kxf5 {[%clk 0:01:22]}  Kxh5 {[%clk 0:00:54]} 35. Ke6 {[%clk 0:01:21]}  Nf4+ {[%clk 0:00:49]} 36. Kd7 {[%clk 0:01:21]}  Nxg2 {[%clk 0:00:38]} 37. Kxc7 {[%clk 0:01:22]}  Ne3 {[%clk 0:00:39]} 38. b3 {[%clk 0:01:21]}  b5 {[%clk 0:00:38]} 39. d5 {[%clk 0:01:20]}  bxc4 {[%clk 0:00:38]} 40. bxc4 {[%clk 0:01:19]}  Nxc4 {[%clk 0:00:38]} 41. d6 {[%clk 0:01:20]}  b5 {[%clk 0:00:31]} 42. d7 {[%clk 0:01:20]} 1-0


[Site "https://www.chess.com"]

[Event "Titled Tuesday Blitz April 18 Early 2023"]
[White "ibove"]
[Black "Omariev, Maksim"]
[BlackFideId "4193423"]
[WhiteElo "2328"]
[BlackElo "2462"]
[Result "0-1"]
[Round "06"]
[TimeControl "180+2"]
[Date "2023.04.18"]
[WhiteClock "0:00:42"]
[BlackClock "0:00:08"]

1. d4 {[%clk 0:03:00]}  h5 {[%clk 0:02:50]} 2. Nf3 {[%clk 0:02:56]}  h4 {[%clk 0:02:51]} 3. h3 {[%clk 0:02:56]}  e6 {[%clk 0:02:48]} 4. Bg5 {[%clk 0:02:51]}  Be7 {[%clk 0:02:48]} 5. Qd2 {[%clk 0:02:51]}  d5 {[%clk 0:02:47]} 6. c4 {[%clk 0:02:48]}  b6 {[%clk 0:01:58]} 7. Nc3 {[%clk 0:02:45]}  Bb7 {[%clk 0:01:53]} 8. Bxe7 {[%clk 0:02:33]}  Nxe7 {[%clk 0:01:45]} 9. e3 {[%clk 0:02:34]}  Nd7 {[%clk 0:01:42]} 10. Rc1 {[%clk 0:02:32]}  c5 {[%clk 0:01:22]} 11. Nb5 {[%clk 0:02:28]}  Nf6 {[%clk 0:00:54]} 12. cxd5 {[%clk 0:02:22]}  Nexd5 {[%clk 0:00:39]} 13. dxc5 {[%clk 0:01:54]}  bxc5 {[%clk 0:00:40]} 14. Nc3 {[%clk 0:01:43]}  O-O {[%clk 0:00:37]} 15. Bd3 {[%clk 0:01:38]}  Nb4 {[%clk 0:00:31]} 16. Bb1 {[%clk 0:01:35]}  Qxd2+ {[%clk 0:00:26]} 17. Kxd2 {[%clk 0:01:36]}  Rfd8+ {[%clk 0:00:26]} 18. Ke1 {[%clk 0:01:30]}  Nd3+ {[%clk 0:00:24]} 19. Bxd3 {[%clk 0:01:29]}  Rxd3 {[%clk 0:00:25]} 20. a4 {[%clk 0:01:21]}  Rb8 {[%clk 0:00:10]} 21. Ke2 {[%clk 0:01:20]}  Ba6 {[%clk 0:00:10]} 22. Nb5 {[%clk 0:01:20]}  Rb3 {[%clk 0:00:10]} 23. Rxc5 {[%clk 0:01:16]}  Rxb2+ {[%clk 0:00:10]} 24. Kd3 {[%clk 0:01:12]}  Rxf2 {[%clk 0:00:09]} 25. Nxh4 {[%clk 0:01:08]}  Ra2 {[%clk 0:00:08]} 26. Rhc1 {[%clk 0:01:02]}  Rxa4 {[%clk 0:00:07]} 27. Nf3 {[%clk 0:00:55]}  Rxb5 {[%clk 0:00:06]} 28. Rc6 {[%clk 0:00:47]}  Rb6+ {[%clk 0:00:06]} 29. Kd2 {[%clk 0:00:44]}  Rxc6 {[%clk 0:00:05]} 30. Rxc6 {[%clk 0:00:45]}  Ne4+ {[%clk 0:00:05]} 31. Kc2 {[%clk 0:00:41]}  g6 {[%clk 0:00:05]} 32. Nd4 {[%clk 0:00:40]}  Ra2+ {[%clk 0:00:05]} 33. Kb3 {[%clk 0:00:40]}  Ra5 {[%clk 0:00:04]} 34. Kb4 {[%clk 0:00:41]}  Ra1 {[%clk 0:00:04]} 35. Nb3 {[%clk 0:00:41]}  Ra2 {[%clk 0:00:02]} 36. Nd4 {[%clk 0:00:39]}  Bf1 {[%clk 0:00:03]} 37. Rc8+ {[%clk 0:00:38]}  Kg7 {[%clk 0:00:03]} 38. Nc6 {[%clk 0:00:39]}  a5+ {[%clk 0:00:02]} 39. Nxa5 {[%clk 0:00:39]}  Bxg2 {[%clk 0:00:03]} 40. Nc4 {[%clk 0:00:37]}  Nf6 {[%clk 0:00:03]} 41. Rc7 {[%clk 0:00:37]}  Nd5+ {[%clk 0:00:03]} 42. Kc5 {[%clk 0:00:38]}  Nxc7 {[%clk 0:00:04]} 43. Nd6 {[%clk 0:00:38]}  Nd5 {[%clk 0:00:04]} 44. Nc4 {[%clk 0:00:38]}  Bxh3 {[%clk 0:00:05]} 45. Ne5 {[%clk 0:00:39]}  Rc2+ {[%clk 0:00:05]} 46. Kd4 {[%clk 0:00:40]}  Rg2 {[%clk 0:00:05]} 47. Nd3 {[%clk 0:00:40]}  Rd2 {[%clk 0:00:05]} 48. Kc4 {[%clk 0:00:40]}  Rxd3 {[%clk 0:00:06]} 49. Kxd3 {[%clk 0:00:41]}  g5 {[%clk 0:00:07]} 50. Ke4 {[%clk 0:00:42]}  Kg6 {[%clk 0:00:08]} 0-1


[Site "https://www.chess.com"]